bitfinex-derivatives/quotes_SOLF0:USTF0_20250505
["timestamp","ask_amount","ask_price","bid_price","bid_amount"]
[1746451679284,24.46,144.1,144.03,24.46]
[1746451679688,6.9408,144.07,144.03,24.46]
[1746451679986,24.46,144.1,144.03,24.46]
[1746451680189,24.46,144.1,144.05,6.9414]
[1746451680492,24.46,144.1,144.03,24.46]
[1746451680687,6.9409,144.07,144.03,24.46]
[1746451681188,6.9404,144.08,144.05,6.9416]
[1746451681787,6.9411,144.07,144.04,6.942]
[1746451681978,6.9411,144.07,144.03,24.46]
[1746451681979,24.46,144.1,144.03,24.46]
[1746451682383,6.9399,144.09,144.06,6.9408]
[1746451682588,6.9399,144.09,144.03,24.46]
[1746451683786,370.69481156,144.13,144.03,24.46]
[1746451684087,370.69481156,144.13,144.04,15.77791156]
[1746451684088,24.48,144.12,144.04,15.77791156]
[1746451684290,31.4185,144.12,144.04,15.77791156]
[1746451684495,2.1213,144.19,144.07,11.69481156]
[1746451684786,6.9366,144.16,144.12,6.938]
[1746451685088,2.1213,144.19,144.09,2.0165]
[1746451685289,6.938,144.13,144.09,2.0165]
[1746451685692,6.938,144.13,144.1,6.9392]
[1746451686790,6.9375,144.14,144.1,6.9392]
[1746451688188,6.9378,144.13,144.1,6.9392]
[1746451688789,24.48,144.16,144.09,2.0165]
[1746451688986,24.48,144.16,144.08,26.4441]
[1746451689388,6.9383,144.12,144.08,6.9401]
[1746451689587,24.48,144.16,144.06,2.122]
[1746451690188,6.9376,144.14,144.11,6.9384]
[1746451691092,6.9371,144.15,144.12,6.9383]
[1746451691693,6.9373,144.14,144.11,6.9385]
[1746451691890,24.48,144.16,144.09,26.5678]
[1746451692290,31.4164,144.16,144.13,6.9374]
[1746451692594,6.9364,144.16,144.13,6.9374]
[1746451692784,6.9364,144.16,144.13,6.9375]
[1746451692989,359.0,144.17,144.11,2.1214]
[1746451693297,6.9372,144.15,144.12,6.938]
[1746451693595,6.9372,144.15,144.11,2.1214]
[1746451693796,6.9372,144.15,144.12,6.9382]
[1746451694394,6.9366,144.16,144.13,6.9377]
[1746451695799,6.9359,144.17,144.14,6.9372]
[1746451696097,24.48,144.19,144.11,2.1214]
[1746451697297,6.9361,144.17,144.14,6.9372]
[1746451698794,24.48,144.19,144.11,2.1214]
[1746451699199,6.9362,144.17,144.13,6.9373]
[1746451699397,6.9362,144.17,144.11,2.1214]
[1746451699599,24.48,144.19,144.11,2.1214]
[1746451700898,6.9361,144.17,144.14,6.9371]
[1746451701900,6.9356,144.18,144.15,6.9365]
[1746451702198,24.48,144.19,144.15,6.9365]
[1746451702400,24.48,144.19,144.11,2.1214]
[1746451702598,6.9359,144.17,144.15,6.9368]
[1746451702897,24.48,144.19,144.15,6.9368]
[1746451703098,6.9357,144.18,144.15,6.9368]
[1746451703599,24.48,144.19,144.15,6.9368]
[1746451703797,6.9355,144.18,144.15,6.9368]
[1746451704700,11.69481156,144.17,144.11,2.1214]
[1746451705299,6.9371,144.15,144.12,6.9379]
[1746451705600,11.69481156,144.17,144.11,2.1214]
[1746451705798,6.9367,144.16,144.13,6.9378]
[1746451705994,11.69481156,144.17,144.13,6.9378]
[1746451706401,6.9368,144.15,144.12,6.938]
[1746451706991,6.9368,144.15,144.13,6.9378]
[1746451708600,6.9366,144.16,144.13,6.9378]
[1746451711001,6.9366,144.16,144.14,6.9372]
[1746451711903,6.9361,144.17,144.14,6.9372]
[1746451712905,6.9356,144.18,144.15,6.9366]
[1746451713105,24.48,144.19,144.11,2.1214]
[1746451713405,31.4152,144.19,144.16,6.9361]
[1746451713606,2.1298,144.22,144.13,36.13481156]
[1746451713805,24.44,144.23,144.14,2.1455]
[1746451714002,31.3732,144.23,144.14,2.1455]
[1746451714196,31.3732,144.23,144.15,2.0164]
[1746451714399,24.44,144.23,144.15,2.0164]
[1746451715506,6.934,144.21,144.17,6.9357]
[1746451716204,6.934,144.21,144.18,6.9352]
[1746451717500,6.9342,144.21,144.17,6.9354]
[1746451718005,6.9342,144.21,144.18,6.9353]
[1746451718506,6.9337,144.22,144.19,6.9349]
[1746451723711,6.934,144.21,144.18,6.9352]
[1746451724511,6.9337,144.22,144.19,6.9349]
[1746451725009,24.44,144.23,144.17,24.44]
[1746451725510,6.9321,144.25,144.22,6.9332]
[1746451726309,24.44,144.26,144.18,11.69481156]
[1746451726504,24.44,144.28,144.19,1.9846]
[1746451726903,24.44,144.28,144.2,2.012]
[1746451727112,24.44,144.28,144.21,24.44]
[1746451727413,6.9316,144.26,144.23,6.9327]
[1746451728807,6.9324,144.25,144.22,6.9335]
[1746451729005,24.44,144.28,144.22,6.9335]
[1746451729307,24.44,144.28,144.21,24.44]
[1746451729610,6.9327,144.24,144.21,24.44]
[1746451730110,6.9327,144.24,144.22,6.9332]
[1746451730615,6.9327,144.24,144.21,31.3736]
[1746451731012,6.9327,144.24,144.21,24.44]
[1746451731214,6.9323,144.25,144.21,24.44]
[1746451731616,6.9323,144.25,144.22,6.9332]
[1746451732913,24.44,144.28,144.21,31.3738]
[1746451733311,11.69481156,144.27,144.18,24.44]
[1746451733517,11.69481156,144.24,144.18,31.3752]
[1746451733708,36.13481156,144.24,144.15,24.44]
[1746451733915,2.0456,144.23,144.15,24.44]
[1746451734216,6.9352,144.19,144.17,6.9357]
[1746451734917,6.9345,144.2,144.17,6.9357]
[1746451736412,6.9341,144.21,144.17,6.9357]
[1746451736815,4.0206,144.23,144.15,24.44]
[1746451737014,43.23362763,144.24,144.15,24.44]
[1746451737015,31.3727,144.24,144.15,24.44]
[1746451737513,24.44,144.24,144.15,24.44]
[1746451738017,31.3726,144.24,144.15,24.44]
[1746451738612,31.3726,144.24,144.21,6.9339]
[1746451739820,6.933,144.23,144.2,6.9341]
[1746451740015,24.44,144.24,144.15,24.44]
[1746451740314,6.9337,144.22,144.19,6.9347]
[1746451740515,24.44,144.24,144.15,24.44]
[1746451740818,43.23362763,144.24,144.15,24.44]
[1746451741020,6.9347,144.2,144.17,6.9356]
[1746451741923,6.9343,144.21,144.18,6.9354]
[1746451742323,43.23362763,144.24,144.15,24.44]
[1746451742523,6.9352,144.19,144.16,6.9361]
[1746451744431,43.23362763,144.24,144.16,6.9361]
[1746451744925,6.9352,144.19,144.16,6.9361]
[1746451745225,43.23362763,144.24,144.16,6.9361]
[1746451745420,57.09912763,144.24,144.15,24.44]
[1746451745620,6.9363,144.16,144.12,28.3844]
[1746451745833,6.9363,144.16,144.12,26.4006]
[1746451746018,6.9363,144.16,144.13,6.9374]
[1746451746224,24.38,144.19,144.12,24.38]
[1746451746420,24.38,144.19,144.13,6.9376]
[1746451746824,6.9371,144.15,144.12,24.38]
[1746451747222,24.38,144.19,144.13,6.9378]
[1746451747527,6.9364,144.16,144.12,24.38]
[1746451747720,6.9364,144.16,144.13,6.9375]
[1746451748226,6.936,144.17,144.14,6.9371]
[1746451748822,6.9366,144.16,144.13,6.9376]
[1746451749533,6.9369,144.15,144.13,6.9376]
[1746451749734,6.9369,144.15,144.12,31.318]
[1746451750732,24.38,144.19,144.12,24.38]
[1746451751332,6.9356,144.18,144.15,6.9365]
[1746451751538,24.38,144.19,144.12,24.38]
[1746451752035,359.0,144.23,144.13,2.0402]
[1746451752241,24.4,144.23,144.13,6.2386]
[1746451752541,6.934,144.21,144.13,6.2386]
[1746451753041,6.934,144.21,144.19,6.9349]
[1746451753638,6.934,144.21,144.18,6.9352]
[1746451753839,6.9345,144.2,144.16,24.4]
[1746451754240,24.4,144.23,144.16,24.4]
[1746451754439,6.9352,144.19,144.16,24.4]
[1746451754841,24.4,144.23,144.16,24.4]
[1746451755036,6.9357,144.18,144.13,6.2386]
[1746451755344,6.9357,144.18,144.15,6.9366]
[1746451755943,6.9351,144.19,144.16,6.9362]
[1746451757344,6.9346,144.2,144.17,6.9357]
[1746451760446,6.9351,144.19,144.16,6.9363]
[1746451760943,6.9346,144.2,144.17,6.9356]
[1746451761947,6.9346,144.2,144.18,6.9353]
[1746451762748,6.9346,144.2,144.17,6.9356]
[1746451763741,24.4,144.23,144.13,30.6386]
[1746451764148,6.9358,144.18,144.15,6.9368]
[1746451764546,24.4,144.23,144.13,26.4402]
[1746451764748,6.9363,144.16,144.14,6.9371]
[1746451765750,6.9363,144.17,144.14,6.9371]
[1746451767341,6.9364,144.16,144.13,6.9376]
[1746451770051,6.9369,144.15,144.12,6.938]
[1746451770349,6.9369,144.15,144.1,25.4]
[1746451770551,24.4,144.19,144.1,25.4]
[1746451770852,6.9365,144.16,144.13,6.9374]
[1746451771148,6.9365,144.16,144.1,25.4]
[1746451771751,6.9365,144.16,144.14,6.9372]
[1746451772752,6.9361,144.17,144.14,6.9372]
[1746451773351,6.9364,144.16,144.14,6.9372]
[1746451774553,6.9364,144.16,144.13,6.9375]
[1746451774852,6.9364,144.16,144.1,25.4]
[1746451775853,6.9364,144.16,144.13,6.9374]
[1746451776353,6.9364,144.16,144.1,25.4]
[1746451777354,6.9361,144.17,144.14,7.9373]
[1746451777556,24.4,144.19,144.14,1.0]
[1746451777755,36.15125585,144.19,144.14,1.0]
[1746451778857,6.9363,144.17,144.14,1.0]
[1746451779557,6.9363,144.17,144.14,7.9372]
[1746451779761,6.9364,144.16,144.14,1.0]
[1746451781260,6.9364,144.16,144.14,7.9372]
[1746451783760,6.9364,144.16,144.14,1.0]
[1746451784761,6.9368,144.15,144.14,1.0]
[1746451785163,36.15125585,144.19,144.14,1.0]
[1746451785360,36.15125585,144.19,144.14,7.9373]
[1746451786961,6.9363,144.17,144.14,7.9373]
[1746451787163,36.15125585,144.19,144.14,7.9373]
[1746451788064,6.9364,144.16,144.14,7.9373]
[1746451791665,6.9368,144.15,144.14,1.0]
[1746451800786,6.9387,144.11,144.1,1.0]
[1746451802086,6.9385,144.12,144.1,1.0]
[1746451802287,24.4,144.15,144.1,1.0]
[1746451802687,6.9369,144.15,144.12,6.938]
[1746451802991,1.20801875,144.17,144.11,24.4]
[1746451803184,1.20801875,144.17,144.12,3.9517]
[1746451803483,395.15125585,144.21,144.12,5.9432]
[1746451803880,11.75125585,144.18,144.12,3.9715]
[1746451804083,24.4,144.17,144.11,31.3385]
[1746451804277,24.4,144.17,144.11,24.4]
[1746451804689,24.4,144.17,144.1,1.0]
[1746451804887,6.9373,144.15,144.1,1.0]
[1746451805090,24.4,144.17,144.1,1.0]
[1746451805888,24.4,144.17,144.13,6.9374]
[1746451806089,24.4,144.17,144.1,1.0]
[1746451806387,24.4,144.17,144.12,6.938]
[1746451806593,24.4,144.17,144.1,1.0]
[1746451807387,11.75125585,144.15,144.1,1.0]
[1746451807583,6.9387,144.11,144.1,1.0]
[1746451807989,31.338,144.13,144.1,7.9391]
[1746451808192,24.4,144.13,144.1,7.9391]
[1746451808385,24.4,144.13,144.1,1.0]
[1746451808582,395.15125585,144.18,144.1,1.0]
[1746451808797,24.4,144.18,144.11,2.0872]
[1746451809798,6.9366,144.16,144.13,6.9377]
[1746451809990,36.15125585,144.18,144.11,2.0872]
[1746451810393,6.9366,144.16,144.13,6.9378]
[1746451810590,24.4,144.18,144.11,2.0872]
[1746451810798,24.4,144.21,144.12,11.75125585]
[1746451811089,6.9347,144.2,144.17,6.9356]
[1746451811289,24.4,144.21,144.13,24.4]
[1746451811500,6.9341,144.21,144.19,6.9349]
[1746451811698,573.76,144.24,144.19,6.9349]
[1746451811892,573.76,144.24,144.13,24.4]
[1746451812089,6.9333,144.23,144.2,6.9344]
[1746451812596,24.4,144.24,144.17,24.4]
[1746451813099,6.9332,144.23,144.19,6.9346]
[1746451813293,24.4,144.24,144.19,6.9346]
[1746451813493,24.4,144.24,144.17,24.4]
[1746451813692,24.4,144.24,144.17,31.3356]
[1746451814293,24.4,144.24,144.17,24.4]
[1746451814597,24.4,144.24,144.14,24.4]
[1746451814795,6.935,144.19,144.16,6.9361]
[1746451815192,24.4,144.24,144.14,24.4]
[1746451815796,24.4,144.24,144.15,4.1222]
[1746451816094,6.9338,144.22,144.18,6.9351]
[1746451816499,6.9332,144.23,144.16,2.1157]
[1746451816698,24.4,144.24,144.16,2.1157]
[1746451818000,6.9332,144.23,144.2,6.9343]
[1746451818201,6.9332,144.23,144.16,2.1157]
[1746451818402,24.4,144.24,144.16,2.1157]
[1746451818702,6.9336,144.22,144.19,6.9347]
[1746451818903,24.4,144.24,144.16,2.1157]
[1746451819204,24.38,144.26,144.19,6.9349]
[1746451819705,6.9332,144.23,144.2,6.9344]
[1746451819905,24.38,144.26,144.18,24.38]
[1746451825608,43.16884502,144.26,144.18,24.38]
[1746451825912,43.16884502,144.26,144.16,2.1157]
[1746451830517,24.38,144.26,144.16,2.1157]
[1746451833222,24.38,144.26,144.16,20.90454502]
[1746451833613,359.0,144.27,144.16,20.90454502]
[1746451833922,359.0,144.27,144.18,11.73295439]
[1746451834119,359.0,144.27,144.19,24.42]
[1746451834420,24.42,144.29,144.2,4.1441]
[1746451836115,24.42,144.29,144.21,2.0348]
[1746451838420,24.42,144.29,144.21,13.76775439]
[1746451838719,383.42,144.33,144.21,13.76775439]
[1746451838917,24.42,144.33,144.22,6.55491733]
[1746451839119,24.42,144.33,144.23,30.97491733]
[1746451839717,24.42,144.33,144.24,6.55491733]
[1746451840024,24.42,144.33,144.25,6.55491733]
[1746451840319,11.73295439,144.31,144.25,6.55491733]
[1746451840518,11.73295439,144.28,144.19,1.0]
[1746451840720,11.73295439,144.25,144.19,25.42]
[1746451840917,11.73295439,144.25,144.19,1.0]
[1746451841218,11.73295439,144.22,144.19,1.0]
[1746451841421,36.15295439,144.22,144.19,1.0]
[1746451843320,24.42,144.22,144.19,1.0]
[1746451843516,1.9846,144.24,144.19,1.0]
[1746451843716,24.42,144.25,144.19,1.0]
[1746451843917,11.73295439,144.27,144.19,1.0]
[1746451851323,11.73295439,144.24,144.19,1.0]
[1746451851525,26.5113,144.23,144.19,1.0]
[1746451852625,24.42,144.23,144.19,1.0]
[1746451852823,24.42,144.26,144.19,1.0]
[1746451856231,3.9828,144.25,144.19,1.0]
[1746451861831,11.73295439,144.24,144.19,1.0]
[1746451862335,2.097,144.23,144.19,1.0]
[1746451862533,24.42,144.22,144.19,1.0]
[1746451863940,24.42,144.22,144.15,24.42]
[1746451866038,2.097,144.23,144.15,24.42]
[1746451866247,26.5244,144.25,144.16,2.1422]
[1746451868937,11.73295439,144.22,144.15,24.42]
[1746451869133,11.73295439,144.19,144.09,26.5625]
[1746451869336,24.54,144.18,144.09,26.5625]
[1746451869536,11.73295439,144.16,144.09,24.54]
[1746451869944,2.0308,144.15,144.09,24.54]
[1746451871645,2.0308,144.15,144.07,10.19618857]
[1746451871646,24.54,144.14,144.07,8.17528857]
[1746451872246,24.54,144.14,144.06,24.54]
[1746451874147,36.27295439,144.14,144.06,24.54]
[1746451874350,38.26135439,144.14,144.06,24.54]
[1746451875244,2.1004,144.13,144.06,24.54]
[1746451875647,2.1004,144.13,144.03,24.54]
[1746451875847,11.73295439,144.11,144.03,24.54]
[1746451876147,24.54,144.1,144.03,24.54]
[1746451876746,2.0423,144.09,144.03,24.54]
[1746451880950,2.0423,144.09,144.0,26.56]
[1746451881444,2.0762,144.08,144.0,26.56]
[1746451881643,4.1983,144.08,144.0,2.0]
[1746451881844,18.82505435,144.07,144.0,2.0]
[1746451882044,24.56,144.06,144.0,2.0]
[1746451882451,24.56,144.06,143.95,24.56]
[1746451882650,24.56,144.06,143.93,6.1976]
[1746451883346,18.82505435,144.04,143.93,6.1976]
[1746451883542,18.82505435,144.04,143.93,4.121]
[1746451883747,18.82505435,144.04,143.9,26.5234]
[1746451883947,24.56,144.06,143.9,24.56]
[1746451883948,18.82505435,144.01,143.9,24.56]
[1746451884149,18.82505435,144.01,143.89,1.0]
[1746451884150,28.7929,144.0,143.89,1.0]
[1746451884549,18.82505435,143.98,143.89,1.0]
[1746451885454,18.82505435,143.99,143.85,1.0]
[1746451885455,18.82505435,143.92,143.85,1.0]
[1746451885656,24.56,143.91,143.85,1.0]
[1746451886246,26.7326,143.91,143.85,1.0]
[1746451886444,2.1108,143.9,143.85,1.0]
[1746451886649,18.82505435,143.89,143.85,1.0]
[1746451886952,18.82505435,143.89,143.81,32.70115429]
[1746451887146,359.0,143.89,143.81,32.70115429]
[1746451887547,377.82505435,143.89,143.81,32.70115429]
[1746451888256,359.0,143.89,143.81,32.70115429]
[1746451888452,377.82505435,143.89,143.81,32.70115429]
[1746451889255,359.0,143.88,143.77,2.0655]
[1746451889454,383.58,143.87,143.77,2.0655]
[1746451890652,383.58,143.87,143.75,28.7778]
[1746451891157,18.82505435,143.86,143.75,28.7778]
[1746451891355,20.0355944,143.86,143.75,2.054]
[1746451891756,20.0355944,143.86,143.74,1.0]
[1746451892455,21.42583491,143.86,143.74,1.0]
[1746451893259,1.39024051,143.86,143.74,1.0]
[1746451894060,6.9524,143.83,143.74,1.0]
[1746451894257,25.26,143.83,143.74,1.0]
[1746451894458,6.9549,143.78,143.74,1.0]
[1746451894755,25.26,143.79,143.74,1.0]
[1746451895150,6.9549,143.78,143.75,6.9557]
[1746451895453,25.26,143.79,143.74,1.0]
[1746451897260,6.9549,143.78,143.74,1.0]
[1746451897663,32.2144,143.79,143.74,1.0]
[1746451897863,25.26,143.79,143.74,1.0]
[1746451898161,25.28,143.81,143.8,6.9534]
[1746451898556,1.39024051,143.86,143.74,1.0]
[1746451898753,25.28,143.85,143.8,6.9533]
[1746451898956,25.28,143.85,143.76,25.28]
[1746451899263,6.9529,143.82,143.78,6.9546]
[1746451899663,25.28,143.85,143.76,25.28]
[1746451899865,6.9526,143.83,143.79,6.9541]
[1746451900164,25.28,143.85,143.76,25.28]
[1746451900565,25.28,143.85,143.77,4.1504]
[1746451900766,6.9526,143.83,143.77,4.1504]
[1746451901063,25.28,143.85,143.77,4.1504]
[1746451901263,25.28,143.85,143.82,6.9526]
[1746451901460,25.28,143.85,143.77,4.1504]
[1746451901758,32.229,143.9,143.86,6.9505]
[1746451901963,32.229,143.9,143.82,25.28]
[1746451902156,32.229,143.9,143.83,27.3617]
[1746451902357,32.229,143.9,143.87,6.9502]
[1746451902557,32.229,143.9,143.83,27.3617]
[1746451902757,25.28,143.9,143.83,27.3617]
[1746451902958,25.28,143.9,143.84,2.1673]
[1746451903263,6.9494,143.89,143.84,2.1673]
[1746451903463,25.28,143.9,143.84,2.1673]
[1746451903864,25.28,143.9,143.88,6.9496]
[1746451904064,25.28,143.9,143.84,2.1673]
[1746451904268,362.4585,143.94,143.84,2.1673]
[1746451904269,25.28,143.93,143.84,2.1673]
[1746451904466,25.28,143.93,143.91,6.9481]
[1746451904667,25.28,143.96,143.87,25.28]
[1746451905366,25.28,143.96,143.93,6.9473]
[1746451905568,25.28,143.96,143.87,25.28]
[1746451906469,25.28,143.96,143.88,6.9497]
[1746451906671,25.28,143.96,143.87,25.28]
[1746451906966,6.9477,143.93,143.87,25.28]
[1746451907270,25.28,143.96,143.87,25.28]
[1746451907668,359.0,143.98,143.89,18.82505435]
[1746451907971,25.28,143.99,143.94,6.9465]
[1746451908167,25.28,143.99,143.92,25.28]
[1746451908571,25.28,143.99,143.94,6.9467]
[1746451908770,6.9451,143.98,143.92,25.28]
[1746451908967,25.28,143.99,143.92,25.28]
[1746451909165,25.28,143.99,143.95,6.9464]
[1746451909365,6.9451,143.98,143.93,2.1564]
[1746451909569,6.9451,143.98,143.94,6.9466]
[1746451909871,6.9451,143.98,143.93,2.1564]
[1746451910070,25.28,143.99,143.93,2.1564]
[1746451910272,25.28,143.99,143.94,6.9468]
[1746451910474,25.28,143.99,143.93,2.1564]
[1746451910660,25.28,143.99,143.95,6.9461]
[1746451910870,25.28,143.99,143.93,2.1564]
[1746451911064,6.9458,143.97,143.93,2.1564]
[1746451911273,25.28,143.99,143.92,25.28]
[1746451911573,6.9463,143.96,143.92,25.28]
[1746451911767,25.28,143.99,143.94,6.9465]
[1746451911961,25.28,143.99,143.9,2.0116]
[1746451912164,6.9473,143.94,143.89,25.26]
[1746451912374,25.26,143.95,143.87,2.1564]
[1746451912563,6.9477,143.93,143.87,2.1564]
[1746451912772,25.26,143.94,143.9,6.9484]
[1746451912968,25.26,143.94,143.87,2.1564]
[1746451913169,32.2072,143.94,143.87,2.1564]
[1746451913370,25.26,143.94,143.9,6.9486]
[1746451913569,25.26,143.94,143.87,2.1564]
[1746451913874,32.2071,143.94,143.91,6.9484]
[1746451914474,32.2071,143.94,143.9,6.9487]
[1746451914675,25.26,143.97,143.87,2.1564]
[1746451914877,25.26,143.97,143.88,18.82505435]
[1746451915074,32.2058,143.97,143.93,6.9471]
[1746451915275,25.26,143.97,143.9,25.26]
[1746451915775,25.26,143.97,143.87,2.1564]
[1746451915776,44.08505435,143.97,143.87,27.4164]
[1746451915977,4.613,143.96,143.87,27.4164]
[1746451916176,4.613,143.96,143.85,2.167]
[1746451916577,4.613,143.96,143.89,6.949]
[1746451917176,4.613,143.96,143.85,2.167]
[1746451917372,6.9476,143.93,143.85,2.167]
[1746451917670,25.26,143.97,143.85,20.99205435]
[1746451917876,25.26,143.97,143.86,2.0468]
[1746451918375,25.26,143.97,143.93,6.9471]
[1746451918678,25.26,143.97,143.9,25.26]
[1746451918976,25.26,143.97,143.92,6.9479]
[1746451919174,6.9468,143.95,143.92,6.9479]
[1746451919478,25.26,143.97,143.93,6.9474]
[1746451919676,32.2057,143.97,143.9,25.26]
[1746451919878,27.3009,144.01,143.91,18.82505435]
[1746451920270,6.9453,143.98,143.95,6.9465]
[1746451920476,27.3009,144.01,143.92,4.0173]
[1746451921075,25.26,144.01,143.92,4.0173]
[1746451921475,6.9444,144.0,143.92,4.0173]
[1746451921674,359.0,144.02,143.94,18.82505435]
[1746451921975,359.0,144.02,144.0,6.9439]
[1746451922177,32.2025,144.04,144.0,6.9439]
[1746451922677,25.26,144.04,143.95,27.3198]
[1746451923075,25.26,144.04,143.95,57.9209262]
[1746451923775,25.88,144.07,143.95,57.9209262]
[1746451924077,6.9433,144.02,143.99,6.9445]
[1746451924381,25.88,144.07,143.95,57.9209262]
[1746451924777,25.88,144.07,143.95,27.3198]
[1746451924971,31.80998421,144.06,143.95,27.3198]
[1746451925177,31.80998421,144.06,143.95,25.26]
[1746451925178,359.0,144.05,143.95,25.26]
[1746451925679,6.946,143.96,143.95,25.26]
[1746451925984,25.88,144.01,143.91,25.88]
[1746451926180,27.8956,144.0,143.91,25.88]
[1746451926379,29.1165,144.0,143.91,25.88]
[1746451926677,29.1165,144.0,143.88,4.1663]
[1746451926678,388.1165,144.0,143.89,6.9489]
[1746451926978,388.1165,144.0,143.88,30.0463]
[1746451927376,6.9485,143.91,143.88,34.9071]
[1746451927880,6.9481,143.92,143.89,6.9494]
[1746451928273,25.88,143.95,143.88,27.9576]
[1746451928580,25.88,143.95,143.87,1.9848]
[1746451928882,6.9476,143.93,143.89,6.9489]
[1746451929083,25.88,143.95,143.87,1.9848]
[1746451929581,6.9477,143.93,143.9,6.9486]
[1746451929982,25.88,143.95,143.87,1.9848]
[1746451930185,27.08959333,143.98,143.87,1.9848]
[1746451930384,25.88,143.98,143.88,2.1003]
[1746451930683,25.88,143.98,143.89,56.4811262]
[1746451931184,25.88,143.98,143.95,6.9464]
[1746451931484,25.88,144.04,143.95,30.6011262]
[1746451931784,6.9432,144.02,143.98,6.9448]
[1746451931980,25.88,144.04,143.97,25.88]
[1746451932382,6.9429,144.03,143.97,27.8955]
[1746451932681,25.88,144.04,143.97,27.8955]
[1746451932880,6.9433,144.02,143.99,6.9441]
[1746451933082,25.88,144.04,143.97,27.8955]
[1746451933384,25.88,144.07,143.97,27.8955]
[1746451933681,25.88,144.07,143.98,30.6011262]
[1746451934477,3.4811,144.09,143.98,30.6011262]
[1746451934478,2.118,144.09,143.98,30.6011262]
[1746451934686,6.9409,144.07,144.03,6.9422]
[1746451934984,6.9409,144.07,144.01,25.88]
[1746451935380,6.9404,144.08,144.01,25.88]
[1746451935581,25.88,144.1,144.01,56.4811262]
[1746451935782,25.88,144.1,144.02,2.0507]
[1746451936682,6.9413,144.06,144.02,6.9427]
[1746451936877,25.88,144.1,144.01,25.88]
[1746451937081,25.88,144.1,143.99,25.88]
[1746451937780,6.941,144.07,144.03,6.9425]
[1746451938088,47.72150149,144.13,144.03,6.9425]
[1746451938275,384.88,144.12,144.02,6.9429]
[1746451938887,384.88,144.12,143.99,25.88]
[1746451939086,384.88,144.12,144.03,6.9424]
[1746451939285,6.941,144.07,143.99,25.88]
[1746451939585,384.88,144.12,144.06,6.9408]
[1746451939786,384.88,144.12,144.04,25.86]
[1746451941188,384.88,144.12,144.05,6.9414]
[1746451941787,384.88,144.12,144.04,25.86]
[1746451942287,6.9405,144.08,144.05,6.9415]
[1746451942593,384.88,144.12,144.04,25.86]
[1746451942992,384.88,144.12,144.04,32.8018]
[1746451943488,6.9408,144.07,144.04,32.8018]
[1746451943689,384.88,144.12,144.04,32.8019]
[1746451943990,6.9408,144.07,144.04,32.8019]
[1746451944187,384.88,144.12,144.04,32.8019]
[1746451944588,384.88,144.12,144.04,25.86]
[1746451944986,359.0,144.12,144.05,2.1523]
[1746451945185,6.9395,144.1,144.07,6.9406]
[1746451945386,359.0,144.12,144.05,2.1523]
[1746451945693,25.86,144.11,144.04,25.86]
[1746451946490,6.9406,144.08,144.04,25.86]